bitfinex/quotes_ETHUSD_20240730
["timestamp","ask_amount","ask_price","bid_price","bid_amount"]
[1722303586225,0.593506,3327.7,3326.9,2.40463]
[1722303586530,0.55,3327.6,3326.9,2.40463]
[1722303586734,0.55,3327.6,3326.6,2.40484]
[1722303586919,0.55,3327.6,3326.7,2.40475]
[1722303587110,0.55,3327.6,3326.6,2.40482]
[1722303587309,0.55,3327.6,3327.0,2.40456]
[1722303587949,0.55,3327.6,3327.1,2.40449]
[1722303588454,0.55,3327.6,3326.9,2.40459]
[1722303588752,0.55,3327.6,3326.9,0.06010845]
[1722303588953,0.55,3327.6,3327.2,2.40441]
[1722303589157,0.10199623,3327.5,3327.2,2.40441]
[1722303589524,0.55,3327.7,3327.2,2.40441]
[1722303589730,0.10199623,3327.4,3327.2,2.40441]
[1722303589926,0.55,3327.7,3327.2,2.40441]
[1722303590443,0.10199623,3327.6,3327.2,2.40441]
[1722303590645,0.55,3327.5,3327.2,2.40441]
[1722303591046,0.55,3327.5,3327.0,2.40456]
[1722303591047,0.10199623,3327.4,3327.0,2.40456]
[1722303591358,0.55,3327.7,3327.0,2.40456]
[1722303591659,1.373323,3327.7,3327.0,2.40456]
[1722303591865,0.10199623,3327.6,3326.8,2.40471]
[1722303592191,0.55,3327.5,3326.8,2.40471]
[1722303592365,3.21,3327.5,3326.4,2.40498]
[1722303592665,0.10203613,3327.4,3326.7,2.40478]
[1722303592964,0.67366074,3327.4,3326.3,0.1451568]
[1722303593166,0.55,3327.3,3326.3,0.1451568]
[1722303593753,0.10195997,3327.2,3326.4,2.40495]
[1722303593947,0.55,3327.1,3326.6,2.40485]
[1722303594558,0.10195997,3327.0,3326.8,2.40465]
[1722303594895,2.66,3327.5,3326.8,2.40465]
[1722303595086,0.1019237,3326.9,3326.8,2.40465]
[1722303595243,0.1019237,3326.9,3326.6,2.6513268]
[1722303595447,0.1019237,3326.9,3326.8,2.40471]
[1722303595644,0.55,3327.4,3326.8,2.40471]
[1722303595848,0.1019237,3326.9,3326.8,2.40471]
[1722303596086,0.55,3327.4,3326.8,2.40471]
[1722303596287,0.10193097,3326.9,3326.8,2.40471]
[1722303596587,0.55,3327.4,3326.8,2.40471]
[1722303596883,0.55,3327.4,3326.6,2.40485]
[1722303596884,0.871,3327.4,3326.6,2.40485]
[1722303597048,0.10193097,3327.3,3326.6,2.40485]
[1722303597249,0.55,3327.2,3326.6,2.40485]
[1722303597650,0.10194547,3327.1,3326.6,2.40485]
[1722303597962,0.55,3327.3,3326.6,2.40485]
[1722303598480,0.10194547,3327.2,3326.6,2.40485]
[1722303600475,0.10194547,3327.2,3326.7,2.4648739]
[1722303600659,0.10194547,3327.2,3326.6,2.2513]
[1722303600660,0.10194547,3327.2,3326.8,0.06011078]
[1722303600861,1.25514205,3327.8,3326.9,2.40463]
[1722303601061,1.25514205,3327.8,3327.2,2.40441]
[1722303601287,1.25514205,3327.7,3327.2,2.40441]
[1722303601485,1.25514205,3327.8,3327.0,2.40452]
[1722303601688,1.25514205,3327.8,3326.9,2.65110408]
[1722303601986,2.66,3327.9,3326.9,2.65110408]
[1722303601987,2.66,3327.9,3327.3,2.40435]
[1722303602291,1.1285142,3327.8,3327.3,2.40435]
[1722303602492,2.66,3327.9,3327.3,2.40435]
[1722303602686,2.66,3327.9,3327.2,0.06010377]
[1722303602892,2.2862,3328.2,3327.6,2.40413]
[1722303602893,3.54134205,3328.2,3327.6,2.40413]
[1722303603056,0.55,3328.1,3327.6,2.40413]
[1722303603256,0.55,3328.1,3327.7,2.40406]
[1722303603495,0.55,3328.2,3327.7,2.40406]
[1722303603694,0.55,3328.2,3327.5,2.40419]
[1722303604095,0.10209413,3328.1,3327.6,2.40412]
[1722303604399,0.55,3328.0,3327.6,2.40412]
[1722303604900,0.10209413,3327.9,3327.6,2.40412]
[1722303605129,0.55,3328.1,3327.6,2.40412]
[1722303605293,0.10209413,3327.8,3327.6,2.40412]
[1722303605607,0.55,3328.1,3327.6,2.40412]
[1722303605900,0.10209413,3327.7,3327.6,2.40412]
[1722303606102,0.55,3328.2,3327.7,2.40404]
[1722303606309,2.66,3328.3,3327.8,2.40397]
[1722303606503,3.91628722,3328.3,3327.8,2.40397]
[1722303606707,2.66,3328.3,3327.8,2.40397]
[1722303607083,0.39162872,3328.2,3327.5,2.4042]
[1722303607405,0.55,3328.1,3327.3,2.40434]
[1722303607576,0.55,3328.1,3327.5,2.4042]
[1722303607770,1.03579159,3328.1,3327.2,2.40441]
[1722303607966,1.03579159,3328.1,3327.3,2.4043]
[1722303608190,1.03579159,3328.1,3327.4,2.40425]
[1722303609873,3.91628722,3328.3,3327.8,2.40397]
[1722303610076,3.91628722,3328.3,3327.6,2.40413]
[1722303610689,3.91628722,3328.3,3327.4,2.40426]
[1722303610897,2.40375,3328.2,3327.3,2.40434]
[1722303611107,5.1418,3327.9,3326.9,2.40462]
[1722303611307,5.1418,3327.9,3326.8,2.40471]
[1722303611308,2.66,3327.5,3326.8,2.40471]
[1722303611686,0.55,3327.4,3326.8,2.40471]
[1722303611886,0.55,3327.4,3326.6,2.40481]
[1722303612217,0.561421,3327.3,3326.7,2.40477]
[1722303612414,0.55,3327.4,3326.7,2.40477]
[1722303613270,2.66,3327.5,3327.0,2.40456]
[1722303615413,1.25579971,3327.6,3327.1,2.40449]
[1722303615592,1.25579971,3327.7,3327.1,2.40449]
[1722303615793,1.80579971,3327.7,3327.1,2.40449]
[1722303616196,1.80579971,3327.7,3327.3,2.4043]
[1722303616496,2.66,3327.9,3327.4,0.06010328]
[1722303616682,1.25579971,3328.1,3327.4,2.46437328]
[1722303617397,1.25579971,3328.0,3327.4,2.40427]
[1722303617584,1.25579971,3328.0,3327.5,2.4042]
[1722303618118,4.9597,3328.3,3327.5,2.4042]
[1722303618306,1.25784737,3328.0,3327.5,2.4042]
[1722303619114,0.10215214,3327.9,3327.5,2.4042]
[1722303619526,0.10215214,3327.9,3327.3,2.69944227]
[1722303619739,1.25784737,3327.8,3327.1,2.40449]
[1722303619943,1.80784737,3327.7,3327.1,2.40449]
[1722303620112,1.25784737,3327.6,3327.2,2.40442]
[1722303620305,1.80784737,3327.7,3327.0,2.40453]
[1722303620624,0.10228267,3327.5,3327.0,2.40453]
[1722303620823,1.25784737,3327.6,3327.1,2.40448]
[1722303621035,0.10228267,3327.4,3327.2,2.40441]
[1722303621237,1.80784737,3327.7,3327.0,0.725166]
[1722303621434,0.10228267,3327.3,3327.1,2.40448]
[1722303621601,1.25800402,3327.6,3327.1,2.40448]
[1722303621808,0.10213766,3327.2,3327.1,2.40448]
[1722303622116,1.25800402,3327.5,3326.9,2.40463]
[1722303622317,1.25800402,3327.5,3326.0,0.63057959]
[1722303622318,0.10212315,3327.2,3326.4,9.74499]
[1722303622504,6.32249402,3327.1,3326.3,0.1451568]
[1722303622715,1.25800402,3326.9,3326.3,0.1451568]
[1722303622911,1.25800402,3326.8,3326.3,0.1451568]
[1722303623110,1.80800402,3326.7,3326.3,0.1451568]
[1722303623307,1.25800402,3326.6,3326.3,0.1451568]
[1722303623854,0.10195635,3326.5,3326.3,0.1451568]
[1722303624226,0.55,3326.7,3326.3,0.1451568]
[1722303624457,0.10180401,3326.4,3326.3,0.1451568]
[1722303624611,1.80800402,3326.7,3326.3,0.1451568]
[1722303624811,0.10180401,3326.6,3326.3,0.1451568]
[1722303625270,0.10180401,3326.6,3326.3,2.5502168]
[1722303625860,0.10180401,3326.6,3326.3,0.1451568]
[1722303629317,0.10180401,3326.6,3326.3,2.5502168]
[1722303629713,0.10180401,3326.6,3326.3,0.1451568]
[1722303630126,0.55,3326.5,3326.3,0.1451568]
[1722303630315,0.10164441,3326.4,3326.3,0.1451568]
[1722303630512,0.65164441,3326.4,3326.3,0.1451568]
[1722303630718,4.3108828,3326.4,3326.3,0.1451568]
[1722303630959,3.05664441,3326.4,3326.3,0.1451568]
[1722303631115,5.03816912,3326.4,3326.3,0.1451568]
[1722303631470,3.05664441,3326.4,3326.3,0.1451568]
[1722303631610,4.3108828,3326.4,3326.3,0.1451568]
[1722303631816,3.05664441,3326.4,3326.3,0.1451568]
[1722303632019,4.34062884,3326.4,3326.3,0.1451568]
[1722303632344,3.73363651,3326.4,3326.3,0.1451568]
[1722303633065,4.9870768,3326.4,3326.3,0.1451568]
[1722303633271,3.73363651,3326.4,3326.3,0.1451568]
[1722303634893,4.9870768,3326.4,3326.3,0.1451568]
[1722303635096,1.32863651,3326.4,3326.3,0.1451568]
[1722303635387,0.68218855,3326.4,3326.3,0.1451568]
[1722303637182,3.08718855,3326.4,3326.3,0.1451568]
[1722303637397,5.49218855,3326.4,3326.3,0.1451568]
[1722303637816,3.08718855,3326.4,3326.3,0.1451568]
[1722303638004,3.91822001,3326.4,3326.3,0.1451568]
[1722303638201,1.51322001,3326.4,3326.3,0.1451568]
[1722303638516,0.68218855,3326.4,3326.3,0.1451568]
[1722303639441,3.08718855,3326.4,3326.3,0.1451568]
[1722303639803,0.68218855,3326.4,3326.3,0.1451568]
[1722303642130,3.34218855,3326.4,3326.3,0.1451568]
[1722303642319,5.74718855,3326.4,3326.3,0.1451568]
[1722303642632,6.3219074,3326.4,3326.3,0.1451568]
[1722303643730,3.9169074,3326.4,3326.3,0.1451568]
[1722303644045,3.34218855,3326.4,3326.3,0.1451568]
[1722303644463,5.74718855,3326.4,3326.3,0.1451568]
[1722303644598,10.51838855,3326.4,3326.3,0.1451568]
[1722303645304,13.51838855,3326.4,3326.3,0.1451568]
[1722303645605,14.76787562,3326.4,3326.3,0.1451568]
[1722303645813,16.64143665,3326.4,3326.3,0.1451568]
[1722303646206,16.64143665,3326.4,3324.8,2.2956]
[1722303646207,2.40532,3326.0,3324.8,2.2956]
[1722303646413,2.66,3325.7,3324.8,4.70175]
[1722303646740,0.55,3325.6,3324.9,2.40608]
[1722303646901,0.13161522,3325.5,3325.0,2.406]
[1722303647096,0.55,3325.4,3325.0,2.406]
[1722303647311,0.55,3325.4,3324.8,4.70175]
[1722303647522,0.13161522,3325.3,3324.8,4.70175]
[1722303647721,0.55,3325.6,3324.8,5.412553]
[1722303647921,0.13161522,3325.5,3324.8,4.70175]
[1722303648158,0.13161522,3325.5,3324.4,2.40643]
[1722303648159,2.66,3325.2,3324.4,2.40643]
[1722303648313,2.66,3324.8,3324.4,2.40643]
[1722303648648,0.13131759,3324.7,3324.4,2.40643]
[1722303648863,0.13131759,3324.7,3324.3,2.40648]
[1722303649032,3.21,3325.2,3324.3,2.40648]
[1722303649033,2.66,3325.2,3324.5,2.40637]
[1722303649228,0.55,3325.1,3324.5,2.40637]
[1722303649457,0.55,3325.1,3324.3,2.40648]
[1722303649458,1.29742474,3325.1,3324.3,2.40648]
[1722303649656,3.70337474,3325.1,3324.2,4.79289]
[1722303649977,3.70337474,3325.1,3324.3,2.40651]
[1722303650860,2.66,3324.4,3323.3,2.3863]
[1722303651060,0.266,3324.3,3323.4,2.40713]
[1722303651275,3.3535471,3324.3,3323.4,2.40713]
[1722303651626,2.40659,3324.2,3323.3,2.3863]
[1722303651886,0.9470271,3324.3,3323.3,2.3863]
[1722303651887,2.66,3323.9,3323.3,2.3863]
[1722303652090,0.55,3323.8,3323.3,2.3863]
[1722303652374,0.13066393,3323.7,3323.4,2.40716]
[1722303652679,0.55,3323.8,3323.4,2.40716]
[1722303652875,0.13039871,3323.6,3323.4,2.40716]
[1722303653177,0.13039871,3323.5,3323.4,2.40716]
[1722303653390,0.55,3323.8,3323.4,2.40716]
[1722303653591,0.13010441,3323.5,3323.4,2.40716]
[1722303653795,0.55,3323.8,3323.4,2.40716]
[1722303654003,0.13010441,3323.5,3323.4,2.40716]
[1722303654301,0.55,3323.8,3323.4,2.40716]
[1722303654888,0.13010441,3323.7,3323.4,2.40716]
[1722303655394,0.13010441,3323.6,3323.4,2.40716]
[1722303655674,0.13010441,3323.6,3323.3,2.3863]
[1722303655845,0.55,3323.8,3323.3,4.79354]
[1722303656042,0.1300608,3323.5,3323.3,4.79354]
[1722303656260,0.55,3323.8,3323.3,4.79354]
[1722303656463,0.1300608,3323.4,3323.3,4.79354]
[1722303656818,0.55,3323.8,3323.3,2.3863]
[1722303657016,0.55,3323.8,3323.5,2.40708]
[1722303657177,0.55,3323.8,3323.4,2.40717]
[1722303657386,0.13000627,3323.7,3323.4,2.40717]
[1722303657705,0.13000627,3323.7,3323.2,2.40727]
[1722303657924,0.55,3323.8,3323.2,2.40727]
[1722303658079,0.13000627,3323.6,3323.2,2.40727]
[1722303658416,0.55,3323.8,3323.2,2.40727]
[1722303658417,0.13000627,3323.5,3323.2,2.40727]
[1722303658764,5.0807,3323.5,3323.0,0.1451568]
[1722303659061,2.66,3323.1,3323.0,0.1451568]
[1722303659477,3.33996629,3323.1,3323.0,0.1451568]
[1722303660059,3.33996629,3323.1,3323.0,0.14381456]
[1722303660435,6.08135292,3323.1,3323.0,0.14381456]
[1722303660918,3.67396292,3323.1,3323.0,0.14381456]
[1722303661123,0.67996629,3323.1,3323.0,0.14381456]
[1722303662172,0.67996629,3323.1,3323.0,2.55127456]
[1722303662495,3.21,3323.1,3323.0,0.14381456]
[1722303662860,3.33942826,3323.1,3323.0,0.14381456]
[1722303663708,8.15241826,3323.1,3323.0,0.14381456]
[1722303663928,2.40769,3322.7,3321.4,7.34]
[1722303664082,2.66,3322.3,3321.8,2.40832]
[1722303664287,0.55,3322.2,3321.8,2.40832]
[1722303664516,0.67934101,3322.2,3321.8,2.40832]
[1722303664738,0.67934101,3322.2,3321.6,2.40846]
[1722303665426,1.01327511,3322.2,3321.5,2.40854]
[1722303665628,1.01327511,3322.2,3321.6,2.40846]
[1722303665812,1.01327511,3322.2,3321.3,2.4514]
[1722303666024,1.01327511,3322.2,3321.4,2.40861]
[1722303666190,1.01327511,3322.2,3320.7,3.90908]
[1722303666191,2.66,3321.5,3320.6,2.40917]
[1722303666387,2.66,3320.7,3320.2,2.40945]
[1722303666686,2.52874281,3321.4,3320.5,2.40927]
[1722303666687,0.67924281,3320.6,3320.5,2.40927]
[1722303666892,0.12924281,3320.6,3320.5,2.40927]
[1722303667217,2.3995,3321.4,3319.9,1.5]
[1722303667218,2.66,3321.1,3319.9,1.5]
[1722303667416,0.506882,3321.0,3319.7,2.5549468]
[1722303667593,0.55,3320.9,3320.0,2.4096]
[1722303668222,0.55,3320.9,3319.7,0.1451568]
[1722303668223,0.12894814,3320.8,3319.7,0.1451568]
[1722303668423,2.66,3320.7,3319.7,0.1451568]
[1722303668630,0.12894814,3320.8,3320.7,2.40913]
[1722303668928,5.357,3322.1,3320.8,2.40901]
[1722303669088,2.66,3321.8,3320.8,2.40901]
[1722303669288,2.66,3321.8,3320.4,2.40934]
[1722303669525,2.66,3321.4,3320.5,2.40924]
[1722303669819,3.166851,3321.4,3320.3,2.4094]
[1722303670022,0.55,3321.3,3320.4,2.40933]
[1722303670321,2.66,3321.0,3320.0,2.4096]
[1722303670519,3.166885,3321.0,3320.1,2.40956]
[1722303670721,0.55,3320.9,3320.1,2.40956]
[1722303671506,0.55,3320.9,3320.0,2.40961]
[1722303671817,0.9216885,3320.9,3320.0,2.40961]
[1722303672129,2.66,3320.6,3319.7,0.1451568]
[1722303672331,2.66,3320.2,3319.7,0.1451568]
[1722303672518,2.66,3319.8,3319.7,0.1451568]
[1722303672942,5.06978,3319.8,3319.7,0.1451568]
[1722303673150,8.02956,3319.8,3319.7,0.1451568]
[1722303673292,5.57606,3319.5,3318.5,0.00623346]
[1722303673496,2.66,3318.7,3318.5,0.00623346]
[1722303673727,5.0703,3319.1,3318.5,0.00623346]
[1722303673929,0.55,3319.0,3318.5,0.00623346]
[1722303674107,3.55,3319.0,3318.5,0.00623346]
[1722303674516,3.53706979,3319.0,3318.5,0.00623346]
[1722303674756,0.53706979,3319.0,3318.7,2.41051]
[1722303674919,0.53706979,3319.0,3318.7,0.48274635]
[1722303675137,0.53706979,3319.0,3318.9,2.41043]
[1722303675442,5.40973,3319.9,3319.4,2.41001]
[1722303675443,3.0,3319.9,3319.4,2.41001]
[1722303675607,3.0,3319.9,3319.1,2.41027]
[1722303675804,3.0,3319.9,3318.9,2.41036]
[1722303675805,0.3,3319.9,3318.9,2.41036]
[1722303676019,2.40979,3319.8,3318.9,2.41036]
[1722303676239,3.3,3319.9,3318.6,3.8075]
[1722303676240,2.70972,3319.9,3318.6,2.41064]
[1722303676443,0.3,3319.9,3318.7,0.24168735]
[1722303676643,3.562,3320.0,3318.9,2.41037]
[1722303676644,3.0,3319.8,3318.9,2.41037]
[1722303676807,0.55,3319.7,3319.3,2.41012]
[1722303677009,0.55,3319.8,3319.3,2.41012]
[1722303677415,0.55,3319.8,3319.1,2.41028]
[1722303678029,0.55,3319.8,3318.9,2.41043]
[1722303678240,0.55,3319.8,3319.0,2.41032]
[1722303678428,0.55,3319.8,3319.1,2.41027]
[1722303679148,0.55,3319.8,3318.8,2.4105]
[1722303679149,0.12683656,3319.7,3318.8,2.4105]
[1722303679348,2.53673656,3319.7,3318.6,2.41064]
[1722303679546,2.41005,3319.5,3318.5,0.00623346]
[1722303679749,0.67679647,3319.4,3318.5,0.00623346]
[1722303680420,2.4102,3319.3,3318.5,0.00623346]
[1722303680615,0.55,3319.2,3318.5,0.00623346]
[1722303680841,0.67673818,3319.2,3318.5,0.00623346]
[1722303681354,2.41051,3318.8,3318.5,0.00623346]
[1722303681542,0.67666893,3318.7,3318.5,0.00623346]
[1722303682060,0.12666893,3318.7,3318.5,0.00623346]
[1722303682357,3.12101,3319.8,3318.5,0.00623346]
[1722303682533,0.67640649,3319.6,3318.5,0.00623346]
[1722303682862,0.29419065,3319.5,3318.9,2.41041]
[1722303683029,0.55,3319.4,3318.7,2.41054]
[1722303683356,0.55,3319.4,3318.5,0.00623346]
[1722303683357,0.12640649,3319.3,3319.1,2.41023]
[1722303683589,0.7112,3319.8,3319.4,2.41006]
[1722303683880,0.12649399,3319.7,3319.5,2.40994]
[1722303684061,0.12649399,3319.7,3319.3,2.41011]
[1722303684221,3.562,3320.5,3319.2,0.06025245]
[1722303684222,2.40945,3320.3,3319.4,2.41007]
[1722303684429,3.562,3320.5,3319.4,2.41007]
[1722303684685,0.12649399,3320.2,3319.4,2.41007]
[1722303684842,0.59712,3320.4,3319.4,2.41007]
[1722303685050,0.12649399,3320.1,3319.0,2.4103]
[1722303685385,2.53631152,3320.0,3319.1,2.41023]
[1722303685672,5.40971,3319.9,3318.8,2.4105]
[1722303685871,3.0,3319.8,3318.6,1.5]
[1722303686080,2.3685,3320.7,3318.9,0.06025326]
[1722303686243,0.12662152,3319.7,3319.6,4.81984]
[1722303686455,7.37,3320.8,3320.1,2.40956]
[1722303686692,8.3393,3321.2,3319.9,2.40968]
[1722303686693,5.9305,3321.2,3319.9,2.40968]
[1722303687002,8.33928,3321.2,3319.7,2.4700782]
[1722303687281,8.33928,3321.2,3319.1,7.34]
[1722303687282,2.40922,3320.6,3319.3,2.41014]
[1722303687488,3.562,3320.7,3319.2,3.0]
[1722303687788,3.0,3321.1,3320.1,2.40955]
[1722303688073,0.1270916,3321.0,3320.2,0.06023513]
[1722303688259,0.1270916,3321.0,3320.3,0.06022593]
[1722303688457,7.37,3321.6,3320.4,0.15602259]
[1722303688669,0.12732113,3320.9,3320.6,2.40919]
[1722303688832,7.37,3321.6,3320.7,2.4091]
[1722303689035,7.37,3321.6,3320.4,0.15602259]
[1722303689036,0.12744496,3320.8,3320.4,0.15602259]
[1722303689266,2.40859,3321.5,3320.1,2.40955]
[1722303689267,3.620797,3321.5,3320.1,2.40955]
[1722303689476,3.620797,3321.5,3319.8,3.8336]
[1722303689477,0.12758333,3320.7,3320.0,2.4096]
[1722303689643,2.40872,3321.3,3320.0,2.40963]
[1722303689837,0.12758333,3320.6,3320.5,2.40927]
[1722303690038,0.897072,3321.2,3320.2,2.40947]
[1722303690272,0.55,3321.1,3320.3,0.06022941]
[1722303690476,0.55,3321.1,3320.2,2.40947]
[1722303690477,0.6776416,3321.1,3320.1,0.540963]
[1722303690650,2.40899,3320.9,3319.3,2.6257]
[1722303690850,2.95906,3320.8,3319.8,2.40976]
[1722303691052,3.0864816,3321.1,3319.2,2.41021]
[1722303691053,2.40921,3320.6,3319.2,2.41021]
[1722303691255,2.40921,3320.6,3319.0,2.41035]
[1722303691256,2.40965,3320.0,3319.0,2.41035]
[1722303691443,2.40965,3320.0,3319.1,2.41028]
[1722303691778,0.6777108,3319.9,3319.1,2.41028]
[1722303691978,0.6777108,3319.9,3319.2,2.41021]
[1722303692136,0.1277108,3319.9,3319.0,0.06025267]
[1722303692342,9.7863,3320.7,3318.9,2.4975]
[1722303692674,9.7863,3320.7,3319.7,2.40979]
[1722303692675,4.89712297,3320.6,3319.7,2.40979]
[1722303692874,4.89712297,3320.6,3319.7,0.06024249]
[1722303693203,0.12758697,3320.6,3319.9,2.40971]
[1722303693478,3.0,3320.8,3320.1,2.40954]
[1722303693639,0.12735752,3320.5,3320.2,2.40947]
[1722303693852,2.4175,3321.3,3320.5,2.40921]
[1722303694187,0.12741216,3321.2,3320.6,2.40919]
[1722303694364,3.562,3320.8,3319.6,2.40992]
[1722303694567,3.562,3320.8,3319.8,2.40977]
[1722303694788,3.562,3320.8,3319.6,2.40992]
[1722303694789,0.12741944,3320.7,3319.9,2.40971]
[1722303695153,3.12741944,3320.7,3319.9,2.40971]
[1722303695549,3.12741944,3320.7,3319.7,0.06024303]
[1722303695550,0.55,3320.6,3319.7,0.06024303]
[1722303695752,0.12754328,3320.5,3320.0,2.40957]
[1722303696358,0.12754328,3320.5,3320.2,2.40948]
[1722303696559,0.12754328,3320.5,3320.4,2.40934]
[1722303696788,6.332,3322.8,3320.0,2.40962]
[1722303696789,3.0,3321.2,3320.0,2.40962]
[1722303696989,2.409,3320.9,3320.0,2.40962]
[1722303697166,2.40897,3321.0,3319.2,1.5]
[1722303697490,0.12748501,3320.9,3319.2,1.5]
[1722303697694,3.12748501,3320.9,3320.1,2.40951]
[1722303697992,3.12748501,3320.9,3320.4,2.40934]
[1722303698197,0.55,3320.8,3320.4,2.40934]
[1722303698380,0.12747044,3320.7,3320.4,2.40934]
[1722303698569,0.55,3320.8,3320.4,2.40934]
[1722303698903,0.12747044,3320.7,3320.4,2.40934]
[1722303699073,0.12747044,3320.7,3320.2,2.40948]
[1722303699269,0.55,3321.0,3320.3,2.40941]
[1722303699475,0.12753236,3320.6,3320.3,2.40941]
[1722303699675,0.55,3321.0,3320.2,2.40948]
[1722303699872,0.12757606,3320.5,3320.2,2.40948]
[1722303700183,0.12758699,3320.4,3320.1,2.40953]
[1722303700383,0.55,3320.8,3319.9,2.40967]
[1722303700566,0.12759427,3320.7,3319.9,2.40967]
[1722303700886,0.55,3320.6,3319.9,2.40967]
[1722303701101,0.36775943,3320.5,3319.6,2.40991]
[1722303701424,0.49530636,3320.5,3319.6,2.40991]
[1722303701564,0.49530636,3320.5,3319.9,2.40971]
[1722303701765,0.49530636,3320.5,3320.1,2.40955]
[1722303701998,0.12754693,3320.5,3320.2,2.40948]
[1722303702385,0.12754693,3320.5,3320.3,2.40938]
[1722303702810,0.12754693,3320.5,3320.1,2.40952]
[1722303702966,0.12754693,3320.5,3319.4,2.4053]
[1722303702967,0.12754693,3320.5,3320.2,2.40948]
[1722303703404,0.12754693,3320.5,3320.3,2.40941]
[1722303703704,0.12754693,3320.5,3320.4,2.40934]
[1722303703930,0.12754693,3320.5,3320.4,4.81868]
[1722303704208,0.89795,3321.1,3320.6,2.40916]
[1722303704407,0.12753601,3321.0,3320.7,2.40912]
[1722303705764,0.12753601,3321.0,3320.2,0.06022857]
[1722303706065,0.12753601,3321.0,3320.5,2.40921]
[1722303706266,0.12753601,3321.0,3320.2,2.40942]
[1722303706491,0.55,3320.9,3320.7,2.40907]
[1722303706770,0.1276853,3320.9,3320.6,2.40918]
[1722303706966,0.55,3321.1,3320.6,2.40918]
[1722303707204,0.4826853,3321.0,3320.6,2.40918]
[1722303707419,0.55,3320.9,3320.4,2.40934]
[1722303707713,0.55,3320.9,3320.3,2.40941]
[1722303707914,0.12768894,3320.8,3320.3,2.40941]
[1722303708094,0.55,3320.7,3320.3,2.40941]
[1722303708407,0.55,3320.7,3319.6,3.90986]
[1722303708408,0.1276744,3320.6,3320.1,2.40955]
[1722303708616,0.1276744,3320.6,3319.9,2.40969]
[1722303708769,0.1276744,3320.6,3320.2,2.40948]
[1722303710048,0.1276744,3320.6,3320.4,2.40929]
[1722303710236,0.1276744,3320.6,3320.2,2.40946]
[1722303710737,0.1276744,3320.6,3320.3,2.40941]
[1722303711738,0.1276744,3320.6,3320.1,2.40953]
[1722303711944,0.1276744,3320.6,3319.9,2.40964]
[1722303712160,0.55,3320.5,3319.9,2.40964]
[1722303712313,0.55,3320.5,3320.0,2.40963]
[1722303712514,0.12764526,3320.4,3320.0,2.40963]
[1722303713510,0.12764526,3320.4,3319.8,2.40976]
[1722303713852,4.112,3320.3,3319.7,2.40984]
[1722303714039,0.42396453,3320.2,3319.7,2.40984]
[1722303714355,0.55158793,3320.2,3319.5,2.40999]
[1722303714520,0.55,3320.1,3319.5,2.40999]
[1722303714715,0.55,3320.1,3319.6,2.40992]
[1722303714927,0.12759426,3320.0,3319.6,2.40992]
[1722303715139,0.55,3319.9,3319.6,2.40992]
[1722303715442,0.55,3319.9,3319.2,2.4102]
[1722303715609,0.42396453,3320.2,3319.3,2.41007]
[1722303715610,0.12759426,3319.8,3319.3,2.41007]
[1722303715806,0.55,3319.7,3319.6,2.40992]
[1722303716005,0.55,3320.1,3319.7,2.4098]
[1722303716350,0.55,3320.1,3319.5,2.40998]
[1722303717153,0.55,3320.1,3319.6,2.40992]
[1722303717335,0.55,3320.1,3319.4,0.06025033]
[1722303717646,3.0,3320.6,3320.0,2.40963]
[1722303717861,3.0,3320.7,3319.7,2.40979]
[1722303718021,3.355,3321.0,3320.2,2.40944]
[1722303718213,0.56550527,3320.9,3320.2,2.40944]
[1722303718445,0.56550527,3320.9,3320.3,2.4094]
[1722303718649,0.56550527,3320.9,3320.7,2.40912]
[1722303718853,0.56550527,3320.9,3320.8,2.40905]
[1722303719057,8.61964158,3321.5,3320.9,2.40898]
[1722303719058,7.37,3321.5,3320.9,2.40898]
[1722303719250,3.73814158,3321.6,3320.9,2.40898]
[1722303719426,3.73814158,3321.6,3320.3,0.06022878]
[1722303719427,2.4885,3321.6,3320.6,2.40913]
[1722303720153,1.24964158,3321.9,3321.6,2.40846]
[1722303720321,1.24964158,3322.1,3321.7,2.40839]
[1722303720524,2.4227,3322.2,3321.7,2.40839]
[1722303720525,0.36723416,3322.0,3321.7,2.40839]
[1722303720750,0.36723416,3322.0,3321.8,2.40832]
[1722303720921,9.6323,3322.6,3321.7,2.40839]
[1722303720922,9.6323,3322.6,3321.9,2.40826]
[1722303721123,9.6323,3322.6,3322.1,2.4081]
[1722303721124,2.2623,3322.6,3322.1,2.4081]
[1722303721465,2.2623,3322.6,3322.1,2.40806]
[1722303721668,2.2623,3322.6,3321.9,2.40824]
[1722303721834,2.2623,3322.6,3321.6,2.40844]
[1722303722175,0.35119416,3322.5,3322.3,2.40796]
[1722303722322,3.562,3322.8,3322.3,2.40796]
[1722303722663,2.4993,3323.1,3321.9,2.40822]
[1722303722959,1.24964158,3323.5,3322.9,2.40747]
[1722303723262,3.562,3323.8,3322.6,2.40773]
[1722303723555,2.4079,3323.6,3322.8,2.40759]
[1722303724021,0.1286026,3323.5,3322.8,2.40759]
[1722303724225,0.1286026,3323.5,3323.1,2.40736]
[1722303724532,0.3562,3323.7,3322.4,2.46807552]
[1722303724734,3.562,3323.8,3322.4,2.46807552]
[1722303724735,0.1286026,3323.4,3322.8,2.40758]
[1722303724927,0.39182,3323.6,3322.8,2.40758]
[1722303725128,0.1286026,3323.3,3322.3,0.06018637]
[1722303725360,0.39182,3323.6,3323.1,2.40737]
[1722303725658,0.1289336,3323.5,3323.1,2.40737]
[1722303726199,0.1289336,3323.5,3323.4,2.40717]
[1722303726200,0.48100896,3323.5,3323.4,2.40717]
[1722303726323,0.1289336,3323.5,3323.4,2.40717]
[1722303726955,3.562,3324.3,3323.4,2.40717]
[1722303727330,0.12894086,3324.0,3323.4,2.40717]
[1722303727556,2.53569086,3324.0,3323.1,2.40738]